[Event "German Bundesliga 2024-25"]
[Site "Germany"]
[Date "2025.01.12"]
[Round "6.5"]
[White "Razafindratsima, Timothe"]
[Black "Bogosavljevic, Boban"]
[Result "0-1"]
[Annotator "TA"]
[ECO "B30"]
[WhiteElo "2465"]
[BlackElo "2480"]
[PlyCount "92"]
[EventDate "2024.09.27"]
[EventType "team-tourn"]
[EventCountry "GER"]
[SourceTitle "playchess.com"]
[Source "ChessBase"]
[SourceQuality "1"]
[WhiteTeam "Bad Mergentheim"]
[BlackTeam "Deggendorf"]
[TimeControl "40/5400+30:1800+30"]

{[%evp 18,92,28,23,29,38,35,24,22,25,56,43,48,53,56,39,34,37,35,43,40,39,39,4,0,0,0,-11,-3,-26,-34,-56,-64,-74,-72,-73,-74,-99,-84,-239,-202,-212,-221,-225,-167,-341,-299,-515,-469,-359,-444,-848,-854,-783,-810,-1121,-1030,-1412,-1406,-1424,-1349,-29982,-29983,-29989,-29990,-29992,-29989,-29989,-29990,-29990,-29988,-29988,-29989,-29989,-29990,-29998,-512]} 1. e4 {[%emt 0:00:08]} c5 {[%emt 0:00:11]} 2. Nf3 {[%emt 0:00:27][%cal Bg1f3,Bf3d2,Bd2f1,Bf1e3][%mdl 32]} Nc6 {[%emt 0:00:09]} 3. Nc3 {[%emt 0:00:14]} e5 {[%emt 0:03:08]} 4. Bc4 {[%emt 0:00:27]} Be7 {[%emt 0:00:13]} 5. d3 {[%emt 0:00:50]} Nf6 {[%emt 0:06:58]} 6. Nd2 {[%emt 0:00:35]} d6 {[%emt 0:01:14]} 7. Nf1 {[%emt 0:00:26]} Bg4 {[%emt 0:01:43]} 8. f3 {[%emt 0:00:21]} Be6 {[%emt 0:00:06]} 9. Ne3 {[%emt 0:00:06]} O-O {[%emt 0:00:53]} 10. O-O {[%emt 0:03:50]} Nd7 {[%emt 0:16:25]} 11. Ned5 {[%emt 0:11:07]} Nb6 {[%emt 0:06:08]} 12. a4 {[%emt 0:07:41]} Nb4 {[%emt 0:15:02] White has an edge.} 13. Nxb6 {[%emt 0:31:31]} axb6 {[%emt 0:00:34]} 14. Kh1 {[%emt 0:04:03]} Qd7 {[%emt 0:14:16]} 15. b3 {[%emt 0:08:07]} f5 {[%emt 0:03:56]} 16. Bxe6+ {[%emt 0:07:42]} Qxe6 {[%emt 0:00:09]} 17. Ba3 {[%emt 0:00:03] And now Bxb4 would win.} Nc6 {[%emt 0:01:40]} 18. Nd5 {[%emt 0:01:55]} Bd8 {[%emt 0:00:06] Inhibits Nc7.} 19. c4 {[%emt 0:03:19]} Ne7 {[%emt 0:01:31]} 20. Bb2 {[%emt 0:04:02]} Nxd5 {[%emt 0:02:22]} 21. cxd5 {[%emt 0:01:29]} Qd7 {[%emt 0:01:06]} 22. Qc2 {[%emt 0:06:13]} Bg5 {[%emt 0:03:39]} 23. Qc4 {[%emt 0:01:30]} Be3 {[%emt 0:03:03]} 24. Rae1 {[%emt 0:05:11]} f4 {[%emt 0:01:00]} 25. Re2 {[%emt 0:00:53]} h6 {[%emt 0:04:37]} 26. Bc1 {[%emt 0:00:04]} Bd4 {[%emt 0:00:23][%cal Ob6b5] Black is more active.} 27. Bb2 {[%emt 0:00:34]} b5 $1 {[%emt 0:03:37]} 28. Qxb5 {[%emt 0:01:07] This move loses the game for White.} (28. axb5 $17 {was the only defense.} Ra2 29. Rb1) 28... Qxb5 $19 {[%emt 0:00:34]} 29. axb5 {[%emt 0:00:02] White is weak on the dark squares} Ra2 {[%emt 0:00:35]} 30. Rb1 {[%emt 0:00:01] [#]} g5 $1 {[%emt 0:02:17][%mdl 1024] Black has strong compensation.} 31. b6 $2 {[%emt 0:01:20]} (31. Rc2 {was called for.}) 31... Kh7 {[%emt 0:03:00]} 32. h3 $2 {[%emt 0:00:39]} (32. Rd2 {is a better defense.} Rfa8 33. g3) 32... h5 {[%emt 0:01:33]} 33. Rd2 {[%emt 0:00:30]} Rfa8 {[%emt 0:00:10]} 34. g4 {[%emt 0:00:25]} (34. Rc2 $142 Kg6 35. Kh2) 34... fxg3 {[%emt 0:00:59] ...R8a3 is the strong threat.} 35. Rg2 {[%emt 0:00:35]} Bf2 {[%emt 0:01:55]} 36. Bc3 {[%emt 0:00:12] [#]} g4 $1 {[%emt 0:01:04][%mdl 512]} 37. fxg4 {[%emt 0:00:22]} hxg4 {[%emt 0:00:06]} 38. h4 {[%emt 0:00:43]} Kg6 {[%emt 0:01:06]} 39. h5+ {[%emt 0:00:25]} Kxh5 {[%emt 0:00:20] Black mates.} 40. b4 {[%emt 0:00:49]} cxb4 {[%emt 0:01:35]} 41. Bxb4 {[%emt 0:07:33]} Ra1 {[%emt 0:03:35]} 42. Rgg1 {[%emt 0:00:33]} Bxg1 {[%emt 0:00:10]} 43. Rxg1 {[%emt 0:00:05]} Kh4 {[%emt 0:00:12]} 44. Be1 {[%emt 0:00:55]} R8a2 {[%emt 0:00:17][%csl Gg3][%cal Ra2h2]} 45. Bxg3+ {[%emt 0:00:28]} Kh3 {[%emt 0:01:33]} 46. Bxe5 {[%emt 0:01:23]} Rxg1+ {[%emt 0:00:14] Weighted Error Value: White=0.56/Black=0.01 (flawless) .  Mistake:       	White=4     	---        Inaccurate:     	White=1     	Black=1      OK:         	White=5     	Black=12     Best:        	---       	Black=4      Strong:       	---       	Black=1} (46... dxe5 $142 47. Rxa1 Rxa1#) 0-1

[Event "German Bundesliga 2024-25"]
[Site "Germany"]
[Date "2025.01.12"]
[Round "6.6"]
[White "Ganguly, Surya Shekhar"]
[Black "Hracek, Zbynek"]
[Result "1/2-1/2"]
[Annotator "TA"]
[ECO "C55"]
[WhiteElo "2578"]
[BlackElo "2541"]
[PlyCount "40"]
[EventDate "2024.09.27"]
[EventType "team-tourn"]
[EventCountry "GER"]
[SourceTitle "playchess.com"]
[Source "ChessBase"]
[SourceQuality "1"]
[WhiteTeam "SG Solingen"]
[BlackTeam "Werder Bremen"]
[TimeControl "40/5400+30:1800+30"]

{[%evp 10,40,42,36,37,25,21,33,21,0,11,15,14,0,15,0,0,0,-5,-14,0,-14,0,-12,-8,-12,0,-14,-13,-24,0,-80,-83]} 1. e4 {[%emt 0:00:16]} e5 {[%emt 0:00:06]} 2. Nf3 {[%emt 0:00:12]} Nc6 {[%emt 0:00:05]} 3. Bc4 {[%emt 0:00:27]} Nf6 {[%emt 0:00:08]} 4. d3 {[%emt 0:00:15]} Be7 {[%emt 0:00:10]} 5. O-O {[%emt 0:00:41]} O-O {[%emt 0:00:32]} 6. a4 {[%emt 0:05:04][%cal Ba2a4,Ba4a5,Ba5a6][%mdl 32]} d6 {[%emt 0:03:50]} 7. a5 {[%emt 0:01:05]} Be6 {[%emt 0:05:13]} 8. a6 {[%emt 0:03:58]} b6 {[%emt 0:07:09]} 9. Nc3 {[%emt 0:00:39]} Bxc4 {[%emt 0:09:50]} 10. dxc4 {[%emt 0:00:07]} Nb8 {[%emt 0:01:26]} 11. Bg5 {[%emt 0:08:18]} Nbd7 {[%emt 0:18:59]} 12. Re1 {[%emt 0:02:00]} c6 {[%emt 0:01:17]} 13. Qd2 {[%emt 0:02:37]} h6 {[%emt 0:10:40]} 14. Bh4 {[%emt 0:02:34]} Qc7 {[%emt 0:02:35]} 15. h3 {[%emt 0:04:20]} Rad8 {[%emt 0:01:51]} 16. Qe3 {[%emt 0:07:29]} Rfe8 {[%emt 0:02:33]} 17. Red1 {[%emt 0:02:47]} Qc8 {[%emt 0:02:53]} 18. Ne2 {[%emt 0:04:30]} Kh7 {[%emt 0:14:59]} 19. b4 {[%emt 0:08:08]} d5 {[%emt 0:04:54]} 20. c3 {[%emt 0:14:47]} (20. cxd5 $11 cxd5 21. exd5 (21. Bxf6 Nxf6 22. c3 Bf8 $17)) 20... dxc4 {[%emt 0:02:10]} ({Of course not} 20... Nxe4 $6 21. cxd5 cxd5 22. Bxe7 Rxe7 23. Rxd5 $14) (20... dxe4 21. Nd2 $15) 1/2-1/2

[Event "German Bundesliga 2024-25"]
[Site "Germany"]
[Date "2025.01.12"]
[Round "6.6"]
[White "Jovanovic, Zoran"]
[Black "Engel, Luis"]
[Result "0-1"]
[Annotator "TA"]
[ECO "B50"]
[WhiteElo "2520"]
[BlackElo "2549"]
[PlyCount "64"]
[EventDate "2024.09.27"]
[EventType "team-tourn"]
[EventCountry "GER"]
[SourceTitle "playchess.com"]
[Source "ChessBase"]
[SourceQuality "1"]
[WhiteTeam "Kirchweyhe"]
[BlackTeam "Hamburg"]
[TimeControl "40/5400+30:1800+30"]

{[%evp 9,64,0,22,12,12,22,20,11,31,20,13,20,28,15,47,0,0,2,25,0,8,-15,-39,-64,-71,-64,-7,-9,17,0,1,0,47,24,24,0,0,-1,0,-39,-43,-47,-41,-44,-31,-33,0,-200,-217,-208,-209,-255,-265,-701,-664,-1084,-1006]} 1. e4 {[%emt 1:15:41]} c5 {[%emt 0:00:05]} 2. Nf3 {[%emt 0:00:12]} d6 {[%emt 0:00:05]} 3. Nc3 {[%emt 0:00:16]} Nf6 {[%emt 0:00:06]} 4. Bb5+ {[%emt 0:00:07]} Bd7 {[%emt 0:01:10]} 5. Qe2 {[%emt 0:00:25]} Nc6 {[%emt 0:07:04]} 6. Bxc6 {[%emt 0:05:27]} Bxc6 {[%emt 0:00:05]} 7. d4 {[%emt 0:00:02]} cxd4 {[%emt 0:01:22]} 8. Nxd4 {[%emt 0:00:02]} g6 {[%emt 0:02:42]} 9. Bg5 {[%emt 0:05:34]} Bg7 {[%emt 0:01:02]} 10. O-O-O {[%emt 0:00:27]} Qa5 {[%emt 0:04:55]} 11. h4 {[%emt 0:04:59]} O-O {[%emt 0:01:28]} 12. Nb3 {[%emt 0:14:50]} Qc7 {[%emt 0:06:37][%cal Ob7b5]} 13. h5 {[%emt 0:07:33]} b5 {[%emt 0:08:49]} (13... gxh5 $2 14. Nd4 d5 15. e5 $18) 14. hxg6 {[%emt 0:00:49]} (14. Nxb5 Bxb5 15. Qxb5 Nxe4 $15 (15... gxh5 $2 16. Bxf6 exf6 17. Qxh5 $18)) (14. Nd4 {keeps more tension.} b4 15. Nd5 Bxd5 16. exd5 Nxd5 17. Ne6) 14... hxg6 {[%emt 0:00:12]} 15. f3 {[%emt 0:13:53][%cal Og2g4]} (15. Nxb5 Bxb5 16. Qxb5 Nxe4 $15) 15... b4 {[%emt 0:04:17]} 16. Nd5 {[%emt 0:03:49]} Bxd5 {[%emt 0:00:11]} 17. exd5 {[%emt 0:00:02]} a5 {[%emt 0:04:35]} ({Black should play} 17... Rfc8 $15) 18. Nd4 $1 $11 {[%emt 0:04:13]} b3 {[%emt 0:04:46]} 19. axb3 {[%emt 0:01:42]} (19. Nxb3 Rfb8 (19... a4 20. Nd4 $17) 20. Bh6 Bh8 $17) 19... a4 {[%emt 0:01:21]} 20. Qc4 {[%emt 0:00:48]} Rfc8 {[%emt 0:05:45]} (20... Qd7 $11 {is superior.}) 21. Qxc7 $14 {[%emt 0:13:06]} Rxc7 {[%emt 0:00:05]} 22. Bxf6 {[%emt 0:00:37]} (22. b4 $5) 22... Bxf6 {[%emt 0:00:23]} 23. Kb1 {[%emt 0:02:58]} Rc5 {[%emt 0:06:24]} 24. Nc6 {[%emt 0:07:35]} a3 $1 {[%emt 0:04:17]} 25. c4 {[%emt 0:00:44]} ({Avoid the trap} 25. bxa3 $2 Rxa3 26. Nd4 Rca5 $19 (26... Rxd5 $2 27. c3 $19)) 25... axb2 {[%emt 0:02:02]} 26. Kc2 $1 {[%emt 0:01:49]} e6 $36 {[%emt 0:08:13][%mdl 2048] ...exd5 would now be deadly. Black is pushing.} 27. Nb4 {[%emt 0:01:15]} Rc7 {[%emt 0:03:25]} 28. Rhe1 $2 {[%emt 0:03:54] [#]} (28. dxe6 $11 {and White has nothing to worry.} fxe6 (28... Ra1 $2 29. Nd5 $18) 29. Rxd6) 28... Rb7 $1 $19 {[%emt 0:01:20]} 29. Nc6 {[%emt 0:00:10]} exd5 {[%emt 0:02:53]} 30. Rxd5 {[%emt 0:01:44]} Ra1 {[%emt 0:01:26]} 31. Red1 $2 {[%emt 0:04:39] [#]} (31. Rdd1) 31... Rxb3 $1 {[%emt 0:02:18]} 32. Kxb3 {[%emt 0:01:32] Strongly threatening Kc2.} (32. Rb1 Rc3+) 32... Rc1 {[%emt 0:00:12]} (32... b1=R+ 33. Rxb1 Rxb1+ 34. Ka4 $11) 0-1

[Event "German Bundesliga 2024-25"]
[Site "Germany"]
[Date "2025.01.12"]
[Round "6.6"]
[White "Delchev, Aleksander"]
[Black "Ikonnikov, Vyacheslav"]
[Result "1/2-1/2"]
[Annotator "TA"]
[ECO "B30"]
[WhiteElo "2464"]
[BlackElo "2465"]
[PlyCount "42"]
[EventDate "2024.09.27"]
[EventType "team-tourn"]
[EventCountry "GER"]
[SourceTitle "playchess.com"]
[Source "ChessBase"]
[SourceQuality "1"]
[WhiteTeam "Deggendorf"]
[BlackTeam "Bad Mergentheim"]
[TimeControl "40/5400+30:1800+30"]

{[%evp 9,42,21,38,31,44,27,28,26,28,0,-5,0,0,-8,0,0,0,-33,-35,-41,-24,-21,-34,-40,-20,-17,0,-7,0,0,22,19,14,6,6]} 1. e4 {[%emt 0:00:02]} c5 {[%emt 0:00:13]} 2. Nf3 {[%emt 0:00:05]} Nc6 {[%emt 0:00:17]} 3. Bc4 {[%emt 0:00:23]} e6 {[%emt 0:00:54]} 4. O-O {[%emt 0:00:05]} a6 {[%emt 0:00:37]} 5. Re1 {[%emt 0:07:43]} b5 {[%emt 0:10:15]} 6. Bf1 {[%emt 0:00:06]} Nf6 {[%emt 0:00:49]} 7. a4 {[%emt 0:05:45]} b4 {[%emt 0:00:13]} 8. e5 {[%emt 0:00:53]} Nd5 {[%emt 0:01:07]} 9. d3 {[%emt 0:03:32]} d6 {[%emt 0:03:41]} 10. exd6 {[%emt 0:00:05]} Bxd6 {[%emt 0:00:08]} 11. Nbd2 {[%emt 0:00:03]} Be7 {[%emt 0:10:47]} 12. Nc4 {[%emt 0:04:53]} O-O {[%emt 0:07:06]} 13. d4 {[%emt 0:16:19]} cxd4 {[%emt 0:02:09]} 14. Nxd4 {[%emt 0:00:04]} Nxd4 {[%emt 0:05:58]} 15. Qxd4 {[%emt 0:00:04]} Bb7 {[%emt 0:01:00]} 16. a5 {[%emt 0:05:15]} Qc7 {[%emt 0:03:41]} 17. Qg4 {[%emt 0:02:45]} Rfe8 {[%emt 0:09:20]} 18. Bg5 {[%emt 0:07:50]} Bxg5 {[%emt 0:16:19]} 19. Qxg5 {[%emt 0:00:04]} h6 {[%emt 0:00:13]} 20. Qg3 {[%emt 0:00:25]} Qxg3 {[%emt 0:06:27]} 21. hxg3 {[%emt 0:00:04]} Red8 {[%emt 0:01:21]} 1/2-1/2

[Event "German Bundesliga 2024-25"]
[Site "Germany"]
[Date "2025.01.12"]
[Round "6.7"]
[White "Costa, Leonardo"]
[Black "Kovacevic, Aleksandar"]
[Result "1/2-1/2"]
[Annotator "TA"]
[ECO "B43"]
[WhiteElo "2501"]
[BlackElo "2447"]
[PlyCount "119"]
[EventDate "2024.09.27"]
[EventType "team-tourn"]
[EventCountry "GER"]
[SourceTitle "playchess.com"]
[Source "ChessBase"]
[SourceQuality "1"]
[WhiteTeam "Hamburg"]
[BlackTeam "Kirchweyhe"]
[TimeControl "40/5400+30:1800+30"]

{[%evp 15,119,36,33,47,37,33,33,21,39,24,6,23,24,15,14,4,18,5,22,18,17,16,13,18,26,23,9,29,25,24,36,40,42,54,215,201,208,211,232,231,216,226,237,258,427,422,389,431,408,295,429,414,535,504,436,251,224,227,688,8,8,8,11,0,0,0,8,8,8,59,249,0,0,0,8,0,8,8,8,8,8,8,8,8,26,26,26,0,0,0,0,0,0,0,0,0,0,0,0,0,0,0,8,0,0,0]} 1. e4 {[%emt 1:15:44]} c5 {[%emt 0:00:22]} 2. Nf3 {[%emt 0:00:04]} e6 {[%emt 0:00:14]} 3. d4 {[%emt 0:00:04]} cxd4 {[%emt 0:00:05]} 4. Nxd4 {[%emt 0:00:03]} a6 {[%emt 0:00:37]} 5. Nc3 {[%emt 0:00:19]} b5 {[%emt 0:01:24]} 6. Bd3 {[%emt 0:00:04]} Bb7 {[%emt 0:00:21]} 7. O-O {[%emt 0:00:05]} Nc6 {[%emt 0:00:19]} 8. Nxc6 {[%emt 0:00:04]} Bxc6 {[%emt 0:00:06]} 9. Re1 {[%emt 0:00:03]} Ne7 {[%emt 0:01:35]} 10. Bf1 {[%emt 0:00:06]} Ng6 {[%emt 0:00:27]} 11. Be3 {[%emt 0:00:04][%cal Oc3d5]} f6 {[%emt 0:01:26]} 12. Nd5 {[%emt 0:00:05]} Kf7 {[%emt 0:00:45] [#]} (12... exd5 $6 13. exd5 Be7 14. dxc6 dxc6 15. Qh5 $18) 13. c4 $1 {[%emt 0:00:04]} bxc4 {[%emt 0:00:37]} (13... exd5 14. exd5 Bb7 15. c5 $16 (15. cxb5 Bd6 $17)) 14. Nb6 {[%emt 0:00:03][%cal Bd5b6,Bb6a8,Ba8b6][%mdl 32]} Bb4 $1 {[%emt 0:00:52]} 15. Nxa8 {[%emt 0:00:04]} Bxe1 {[%emt 0:00:07]} 16. Nb6 {[%emt 0:00:03]} (16. Qxe1 Qxa8 17. Qd2 Qb7 $15) 16... Bb4 {[%emt 0:01:45]} 17. Bxc4 {[%emt 0:00:04]} Qc7 {[%emt 0:01:13]} 18. Rc1 {[%emt 0:00:04]} Ba5 {[%emt 0:01:17]} 19. Na4 $36 {[%emt 0:00:04][%mdl 2048] Black is under pressure.} Bb4 {[%emt 0:00:51]} 20. Nc5 {[%emt 0:03:44]} Bxc5 {[%emt 0:02:11]} 21. Bxc5 {[%emt 0:00:04]} Qb7 {[%emt 0:16:48]} 22. b4 {[%emt 0:19:21]} Ne5 {[%emt 0:07:26][%cal Oe5c4]} 23. Bf1 {[%emt 0:01:25] A strong pair of Bishops.} Bb5 {[%emt 0:11:21]} 24. f4 {[%emt 0:10:26]} Nc6 $2 {[%emt 0:05:00]} (24... Ng6 $1 $14) 25. Qh5+ $18 {[%emt 0:03:13] Black is weak on the dark squares} g6 {[%emt 0:00:18]} 26. Qh4 $1 {[%emt 0:00:10]} Qc7 {[%emt 0:16:21]} 27. Bxb5 {[%emt 0:19:57]} axb5 {[%emt 0:00:04] [#]} 28. Rd1 $1 {[%emt 0:00:02][%cal Oe4e5]} h5 {[%emt 0:09:11] [#]} 29. e5 $1 {[%emt 0:08:24]} Qd8 $2 {[%emt 0:01:28] [#]} (29... g5 30. fxg5 Qxe5 31. gxf6 (31. Rxd7+ Kg6 $18) 31... d6) 30. Rxd7+ $3 {[%emt 0:03:06][%mdl 512]} Qxd7 {[%emt 0:00:10]} 31. Qxf6+ {[%emt 0:00:02]} (31. exf6 $2 Qd1+ 32. Kf2 Ra8 $19) 31... Kg8 {[%emt 0:00:34]} 32. Qxg6+ {[%emt 0:00:04]} Qg7 {[%emt 0:00:05]} 33. Qxe6+ {[%emt 0:00:03]} Kh7 {[%emt 0:07:49]} 34. Qxc6 {[%emt 0:00:04][%mdl 4096] Endgame KQR-KQB} Rd8 {[%emt 0:00:31]} 35. Bd6 {[%emt 0:02:55]} (35. Qxb5 Rd1+ 36. Kf2 Rd2+ 37. Ke1 Qxg2 $14) (35. h3 $142) 35... Qa7+ {[%emt 0:05:26]} 36. Qc5 {[%emt 0:10:04]} Qxc5+ $2 {[%emt 0:04:59]} (36... Qxa2 37. h3 (37. Qxb5 Qa1+ 38. Kf2 Qd4+ 39. Kf3 Kh8 $16) (37. Qc7+ Kh6 $18) 37... Qb1+ 38. Kh2 Qf5) 37. Bxc5 $2 {[%emt 0:06:41] KR-KB} (37. bxc5 $18 Ra8 38. f5) 37... Kg6 $1 $11 {[%emt 0:00:31]} 38. e6 {[%emt 0:01:00]} Ra8 {[%emt 0:01:58]} 39. g3 {[%emt 0:14:45]} Rxa2 {[%emt 0:00:43]} 40. h3 {[%emt 0:00:03]} Kf5 {[%emt 0:02:27]} 41. e7 {[%emt 0:00:29]} Ra8 $1 {[%emt 0:07:37]} 42. Kg2 {[%emt 0:02:37]} ({White should try} 42. Kf2 $11 Ke4 43. Bd6) 42... h4 $2 {[%emt 0:05:48]} (42... Ke4 $1 $14 43. Bd6 Kd5) 43. Kf3 $2 {[%emt 0:01:56]} (43. gxh4 $18 {Threatens to win with Kf3.} Kxf4 44. Kf2) 43... hxg3 {[%emt 0:01:44]} 44. Kxg3 {[%emt 0:00:04]} Rg8+ {[%emt 0:02:30]} 45. Kf3 {[%emt 0:00:15]} Rh8 {[%emt 0:00:14] [#]} 46. h4 $1 {[%emt 0:11:30][%cal Oh4h5]} Ke6 {[%emt 0:01:19] [#]} (46... Kg6 47. Bd4) 47. h5 $1 {[%emt 0:03:02]} Kf7 $1 {[%emt 0:01:05]} 48. Kg4 {[%emt 0:00:03]} Rg8+ $1 {[%emt 0:01:20]} 49. Kf5 {[%emt 0:00:04]} Rh8 {[%emt 0:00:21]} 50. Kg5 {[%emt 0:07:50]} Rg8+ {[%emt 0:00:25]} 51. Kf5 {[%emt 0:00:04]} Rh8 {[%emt 0:00:03]} 52. Ke5 {[%emt 0:00:02]} Rxh5+ {[%emt 0:00:33]} 53. Kd6 {[%emt 0:00:03]} Ke8 {[%emt 0:01:09]} 54. Kc6 {[%emt 0:00:51]} Rf5 {[%emt 0:01:40]} 55. Kxb5 {[%emt 0:05:03] White threatens Kc6 and mate.} Kd7 {[%emt 0:00:39]} 56. Ka6 {[%emt 0:01:08]} Rxf4 {[%emt 0:07:37]} 57. b5 {[%emt 0:00:03]} Ra4+ {[%emt 0:00:06]} 58. Kb7 {[%emt 0:00:04]} Ra5 {[%emt 0:00:24]} 59. Kb6 {[%emt 0:00:13]} Ra4 {[%emt 0:01:02]} 60. Kb7 {[%emt 0:00:43]} 1/2-1/2

[Event "German Bundesliga 2024-25"]
[Site "Germany"]
[Date "2025.01.12"]
[Round "6.7"]
[White "Babula, Vlastimil"]
[Black "Krastev, Alexander"]
[Result "0-1"]
[Annotator "TA"]
[ECO "A67"]
[WhiteElo "2496"]
[BlackElo "2425"]
[PlyCount "69"]
[EventDate "2024.09.27"]
[EventType "team-tourn"]
[EventCountry "GER"]
[SourceTitle "playchess.com"]
[Source "ChessBase"]
[SourceQuality "1"]
[WhiteTeam "Werder Bremen"]
[BlackTeam "SG Solingen"]
[TimeControl "40/5400+30:1800+30"]

{[%evp 17,69,31,49,50,44,54,56,46,47,50,116,106,120,123,124,112,130,102,86,93,98,16,6,21,26,0,0,0,0,0,59,0,0,0,0,0,0,0,393,389,392,391,895,892,865,781,765,745,764,319,299,0,0,-525]} 1. d4 {[%emt 0:00:06]} Nf6 {[%emt 0:00:03]} 2. c4 {[%emt 0:00:10]} e6 {[%emt 0:00:04]} 3. Nc3 {[%emt 0:00:14]} c5 {[%emt 0:00:08]} 4. d5 {[%emt 0:00:28]} exd5 {[%emt 0:00:05]} 5. cxd5 {[%emt 0:00:14]} d6 {[%emt 0:00:05]} 6. e4 {[%emt 0:00:33]} g6 {[%emt 0:00:05]} 7. f4 {[%emt 0:00:47]} Bg7 {[%emt 0:00:05]} 8. Bb5+ {[%emt 0:00:42]} Nfd7 {[%emt 0:00:05]} 9. a4 {[%emt 0:01:31]} Qh4+ {[%emt 0:00:05]} 10. g3 {[%emt 0:02:27]} Qd8 {[%emt 0:00:06]} 11. Nf3 {[%emt 0:15:59]} O-O {[%emt 0:00:08]} 12. O-O {[%emt 0:00:33] White is slightly better.} Na6 {[%emt 0:00:03][%cal Bb8a6,Ba6c5,Bc5d3][%mdl 32]} 13. f5 {[%emt 0:03:51]} c4 {[%emt 0:45:35]} 14. Bg5 $16 {[%emt 0:05:59]} Qb6+ {[%emt 0:01:20]} 15. Kh1 {[%emt 0:00:44]} Nac5 {[%emt 0:03:32]} 16. Nd2 {[%emt 0:32:55]} (16. Bxc4 $2 Qxb2 17. Be7 Qxc3 $19) 16... Ne5 {[%emt 0:38:30]} 17. Be7 {[%emt 0:02:06]} (17. Bxc4 Qxb2 18. Rc1 Bd7 $11) (17. Nxc4 Nxc4 18. f6 (18. Bxc4 Bxc3 19. fxg6 hxg6 $17) 18... Nxb2 $15) 17... Ncd3 {[%emt 0:04:06][%cal Oa7a6]} 18. Qe2 {[%emt 0:03:29]} (18. Bxc4 Nxb2 (18... Nf2+ 19. Rxf2 Qxf2 20. Qe2 $19) 19. Qe2 Re8 $17) 18... Qd4 {[%emt 0:00:22][%cal Od3b2]} 19. Bxf8 {[%emt 0:18:47]} (19. Bxd6 Nxb2 20. Bxe5 Bxe5 $14) (19. Nb3 $16 Qb6 (19... cxb3 20. Bxf8 Bxf8 21. Rad1 $16) 20. Nd2) 19... Kxf8 $11 {[%emt 0:00:07] [#]} 20. Nb3 $1 {[%emt 0:01:26]} Qb6 {[%emt 0:00:38]} (20... cxb3 21. Rad1 $14) 21. a5 {[%emt 0:00:39]} (21. Nd1 $5) 21... Qc7 {[%emt 0:00:11]} 22. Nd4 {[%emt 0:01:57] Strongly threatening fxg6.} a6 {[%emt 0:01:25]} 23. Ba4 {[%emt 0:01:08] fxg6 is the strong threat.} Kg8 {[%emt 0:00:05] [#]} (23... Qxa5 $11 24. Ne6+ fxe6) 24. Ne6 {[%emt 0:00:55]} fxe6 {[%emt 0:01:05]} 25. dxe6 {[%emt 0:00:05]} gxf5 {[%emt 0:02:14]} (25... Qxa5 $2 26. e7 Bd7 27. Bxd7 $18) 26. Nd5 {[%emt 0:00:37]} Qc5 {[%emt 0:01:43]} 27. e7 $36 {[%emt 0:00:52][%mdl 2048] White has some pressure.} Bd7 {[%emt 0:01:30][%mdl 8192]} (27... Be6 $11 28. Nb6 (28. e8=B $2 fxe4 29. Ne7+ Kh8 $19) (28. e8=Q+ Rxe8 29. Bxe8 fxe4 $11) 28... Rb8 29. exf5 (29. e8=Q+ Rxe8 30. Bxe8 fxe4 $17) 29... Bf7 (29... Bd5+ 30. Nxd5 Qxd5+ 31. Kg1 $16)) 28. Bxd7 $18 {[%emt 0:01:44]} Nxd7 {[%emt 0:00:01]} 29. Rxf5 {[%emt 0:00:46] Black must now prevent Qh5.} (29. Qh5 Qc8 30. Qxf5 (30. exf5 $2 Nf6 $19) 30... Kh8) 29... N7e5 $2 {[%emt 0:00:01]} (29... Qc8 30. Raf1 N3e5) 30. Raf1 {[%emt 0:01:02]} Qc6 {[%emt 0:01:22]} 31. Qe3 {[%emt 0:01:03]} Ng6 {[%emt 0:00:35]} 32. h4 {[%emt 0:01:20]} Re8 {[%emt 0:00:26]} 33. Qg5 {[%emt 0:00:52]} (33. h5 $142 Nxe7 34. Rf7) 33... Nde5 {[%emt 0:00:19] [#]} 34. h5 $2 {[%emt 0:00:55]} (34. Rxe5 $1 $18 {Re6 would now be deadly.} Nxe5 35. Nf6+ Kh8 36. Qf5 (36. Nxe8 Qxe8 37. Qf5 Ng6 $11)) 34... h6 $11 {[%emt 0:00:07] Chess con chili.} 35. Rf8+ $2 {[%emt 0:00:00][%mdl 8192] What a bad dream for White.   Weighted Error Value: White=0.40/Black=0.31.  Loses game:     	White=1     	Black=1      Mistake:       	White=2     	Black=3      Inaccurate:     	White=1     	---        OK:         	White=10    	Black=12     Best:        	White=4     	Black=1} 0-1